bitfinex-derivatives/quotes_BTCF0:USTF0_20240825
["timestamp","ask_amount","ask_price","bid_price","bid_amount"]
[1724597848449,0.12048207,64204.0,64203.0,0.00356542]
[1724597848658,0.48128207,64204.0,64203.0,0.00356542]
[1724597850759,0.57469944,64204.0,64203.0,0.00356542]
[1724597851353,0.51135146,64204.0,64203.0,0.00356542]
[1724597853660,0.62040509,64204.0,64203.0,0.00356542]
[1724597854563,0.51135146,64204.0,64203.0,0.00356542]
[1724597855154,0.62040509,64204.0,64203.0,0.00356542]
[1724597858560,0.57473317,64204.0,64203.0,0.00356542]
[1724597862360,0.21393317,64204.0,64203.0,0.00356542]
[1724597862568,0.57473317,64204.0,64203.0,0.00356542]
[1724597863656,0.48128207,64204.0,64203.0,0.00356542]
[1724597863857,0.21393317,64204.0,64203.0,0.00356542]
[1724597864057,0.57473317,64204.0,64203.0,0.00356542]
[1724597864559,0.48128207,64204.0,64203.0,0.00356542]
[1724597864867,0.57128207,64204.0,64203.0,0.00356542]
[1724597867856,0.74257117,64204.0,64203.0,0.00356542]
[1724597868054,0.64912007,64204.0,64203.0,0.00356542]
[1724597871160,1.00992007,64204.0,64203.0,0.00356542]
[1724597873368,1.0399941,64204.0,64203.0,0.00356542]
[1724597873767,1.07812103,64204.0,64203.0,0.00356542]
[1724597874268,1.15595903,64204.0,64203.0,0.00356542]
[1724597875378,1.15596058,64204.0,64203.0,0.00356542]
[1724597877059,1.15596058,64204.0,64203.0,4.2e-07]
[1724597877275,2.02324058,64204.0,64203.0,4.2e-07]
[1724597877469,2.14752246,64204.0,64203.0,4.2e-07]
[1724597878167,2.14652246,64204.0,64203.0,4.2e-07]
[1724597878366,2.14028058,64204.0,64203.0,4.2e-07]
[1724597879264,2.14628058,64204.0,64203.0,4.2e-07]
[1724597879475,2.16968058,64204.0,64203.0,4.2e-07]
[1724597879670,0.15569,64198.0,64197.0,0.00023367]
[1724597879873,0.74534307,64198.0,64197.0,0.00023367]
[1724597880169,0.65065342,64198.0,64197.0,0.00023367]
[1724597880373,0.75983136,64198.0,64197.0,0.00023367]
[1724597881165,0.76583136,64198.0,64197.0,0.00023367]
[1724597881365,0.62697829,64198.0,64197.0,0.00023367]
[1724597881967,0.63197829,64198.0,64197.0,0.00023367]
[1724597883064,0.72520256,64198.0,64197.0,0.00023367]
[1724597883259,0.63197829,64198.0,64197.0,0.00023367]
[1724597884469,0.54197829,64198.0,64197.0,0.00023367]
[1724597884679,0.63197829,64198.0,64197.0,0.00023367]
[1724597885375,0.27117829,64198.0,64197.0,0.00023367]
[1724597885572,0.99277829,64198.0,64197.0,0.00023367]
[1724597886072,1.07043417,64198.0,64197.0,0.00023367]
[1724597888078,0.99277829,64198.0,64197.0,0.00023367]
[1724597892279,0.63197829,64198.0,64197.0,0.00023367]
[1724597894289,0.66205256,64198.0,64197.0,0.00023367]
[1724597894474,0.63197829,64198.0,64197.0,0.00023367]
[1724597894680,0.66205286,64198.0,64197.0,0.00023367]
[1724597894881,0.55413329,64198.0,64197.0,0.00023367]
[1724597895076,0.58420757,64198.0,64197.0,0.00023367]
[1724597895382,0.58420747,64198.0,64197.0,0.00023367]
[1724597895590,0.58420756,64198.0,64197.0,0.00023367]
[1724597895775,0.55413329,64198.0,64197.0,0.00023367]
[1724597895973,0.58420743,64198.0,64197.0,0.00023367]
[1724597896375,0.55413329,64198.0,64197.0,0.00023367]
[1724597901195,0.57753329,64198.0,64197.0,0.00023367]
[1724597903397,0.60760739,64198.0,64197.0,0.00023367]
[1724597909304,0.60760725,64198.0,64197.0,0.00023367]
[1724597910410,0.60760741,64198.0,64197.0,0.00023367]
[1724597911497,0.67096066,64198.0,64197.0,0.00023367]
[1724597911695,0.57753329,64198.0,64197.0,0.00023367]
[1724597914198,0.48753329,64198.0,64197.0,0.00023367]
[1724597914396,0.57753329,64198.0,64197.0,0.00023367]
[1724597915004,0.60760757,64198.0,64197.0,0.00023367]
[1724597916297,0.57753329,64198.0,64197.0,0.00023367]
[1724597916496,0.6076075,64198.0,64197.0,0.00023367]
[1724597918808,0.60760751,64198.0,64197.0,0.00023367]
[1724597919600,0.58420751,64198.0,64197.0,0.00023367]
[1724597920809,0.60760751,64198.0,64197.0,0.00023367]
[1724597925417,0.57753329,64198.0,64197.0,0.00023367]
[1724597926507,0.58420756,64198.0,64197.0,0.00023367]
[1724597926813,0.69324706,64198.0,64197.0,0.00023367]
[1724597930612,0.66317279,64198.0,64197.0,0.00023367]
[1724597930816,0.69324623,64198.0,64197.0,0.00023367]
[1724597931012,0.33244623,64198.0,64197.0,0.00023367]
[1724597931212,0.69324623,64198.0,64197.0,0.00023367]
[1724597931719,0.33244623,64198.0,64197.0,0.00023367]
[1724597931909,0.69324623,64198.0,64197.0,0.00023367]
[1724597933611,0.64757749,64198.0,64197.0,0.00023367]
[1724597934012,0.55413329,64198.0,64197.0,0.00023367]
[1724597936815,0.55413329,64198.0,64197.0,0.04694137]
[1724597937813,0.55413329,64198.0,64197.0,0.00023367]
[1724597938125,0.55413329,64198.0,64197.0,0.04694137]
[1724597938728,0.55413329,64198.0,64197.0,0.00023367]
[1724597945928,0.58420795,64198.0,64197.0,0.00023367]
[1724597948626,0.64756688,64198.0,64197.0,0.00023367]
[1724597949132,0.55413329,64198.0,64197.0,0.00023367]
[1724597950035,0.64756805,64198.0,64197.0,0.00023367]
[1724597950525,0.55413329,64198.0,64197.0,0.00023367]
[1724597950930,0.19333329,64198.0,64197.0,0.00023367]
[1724597951132,0.55413329,64198.0,64197.0,0.00023367]
[1724597952425,0.64756839,64198.0,64197.0,0.00023367]
[1724597953628,0.55413329,64198.0,64197.0,0.00023367]
[1724597956231,0.64756877,64198.0,64197.0,0.00023367]
[1724597961236,0.28676877,64198.0,64197.0,0.00023367]
[1724597961736,0.64756877,64198.0,64197.0,0.00023367]
[1724597963631,0.5842069,64198.0,64197.0,0.00023367]
[1724597963831,0.55413329,64198.0,64197.0,0.02457787]
[1724597964433,0.60283329,64198.0,64197.0,0.02457787]
[1724597964626,0.68067829,64198.0,64197.0,0.02457787]
[1724597964943,0.60283329,64198.0,64197.0,0.00023367]
[1724597965132,0.60283329,64198.0,64197.0,0.0245788]
[1724597966045,0.68067829,64198.0,64197.0,0.0245788]
[1724597967735,0.68067829,64198.0,64197.0,0.00023367]
[1724597969531,1.04147829,64198.0,64197.0,0.00023367]
[1724597970746,0.31987829,64198.0,64197.0,0.00023367]
[1724597971040,1.04147829,64198.0,64197.0,0.00023367]
[1724597973141,1.04147829,64198.0,64197.0,0.07128647]
[1724597974637,0.31987829,64198.0,64197.0,0.07128647]
[1724597974941,0.95147829,64198.0,64197.0,0.07128647]
[1724597975240,1.04147829,64198.0,64197.0,0.07128647]
[1724597977338,0.31987829,64198.0,64197.0,0.07128647]
[1724597977542,1.04147829,64198.0,64197.0,0.07128647]
[1724597978738,1.04147829,64198.0,64197.0,0.02457877]
[1724597978942,1.04147829,64198.0,64197.0,0.00023367]
[1724597978943,0.31987829,64198.0,64197.0,0.00023367]
[1724597979140,1.04147829,64198.0,64197.0,0.02457876]
[1724597979343,1.04147829,64198.0,64197.0,0.00023367]
[1724597980044,0.31987829,64198.0,64197.0,0.00023367]
[1724597980446,1.04147829,64198.0,64197.0,0.00023367]
[1724597981340,1.09495305,64198.0,64197.0,0.00023367]
[1724597981945,1.07155305,64198.0,64197.0,0.00023367]
[1724597982347,0.34995305,64198.0,64197.0,0.00023367]
[1724597982547,1.07155305,64198.0,64197.0,0.00023367]
[1724597984141,0.34995305,64198.0,64197.0,0.00023367]
[1724597984341,1.07155305,64198.0,64197.0,0.00023367]
[1724597985048,0.34995305,64198.0,64197.0,0.00023367]
[1724597985243,1.07155305,64198.0,64197.0,0.00023367]
[1724597985751,0.96363329,64198.0,64197.0,0.00023367]
[1724597986336,1.04147829,64198.0,64197.0,0.00023367]
[1724597987745,0.96363329,64198.0,64197.0,0.00023367]
[1724597990245,0.24203329,64198.0,64197.0,0.00023367]
[1724597990552,0.96363329,64198.0,64197.0,0.00023367]
[1724597991052,0.24203329,64198.0,64197.0,0.00023367]
[1724597991245,0.96363329,64198.0,64197.0,0.00023367]
[1724597993446,0.99370794,64198.0,64197.0,0.00023367]
[1724597993845,1.10274744,64198.0,64197.0,0.00023367]
[1724597994353,0.94500794,64198.0,64197.0,0.00023367]
[1724597996155,0.85500794,64198.0,64197.0,0.00023367]
[1724597996451,0.94500794,64198.0,64197.0,0.00023367]
[1724597996658,0.22340794,64198.0,64197.0,0.00023367]
[1724597996859,0.58420794,64198.0,64197.0,0.00023367]
[1724597997354,0.22340794,64198.0,64197.0,0.00023367]
[1724597997749,0.58420794,64198.0,64197.0,0.00023367]
[1724597999649,0.22340758,64198.0,64197.0,0.00023367]
[1724598000054,0.60760758,64198.0,64197.0,0.00023367]
[1724598000248,0.58420758,64198.0,64197.0,0.00023367]
[1724598000759,0.55413329,64198.0,64197.0,0.00023367]
[1724598001260,0.077848,64196.0,64195.0,0.04444137]
[1724598001760,0.077848,64196.0,64194.0,0.0451]
[1724598001761,0.09193629,64196.0,64194.0,0.0451]
[1724598001957,0.09,64195.0,64194.0,0.0451]
[1724598002255,0.18193729,64195.0,64194.0,0.0451]
[1724598002656,0.18233729,64195.0,64194.0,0.0451]
[1724598003265,0.077851,64193.0,64192.0,0.06218932]
[1724598003464,0.18233729,64195.0,64187.0,0.07757549]
[1724598003465,0.077852,64192.0,64191.0,0.06218932]
[1724598003660,0.62060032,64192.0,64191.0,0.08653434]
[1724598003960,0.62060032,64192.0,64187.0,0.07757549]
[1724598003961,0.46488829,64192.0,64187.0,0.06218932]
[1724598004154,0.46488829,64192.0,64186.0,0.06218932]
[1724598004155,0.075358,64187.0,64186.0,0.06218932]
[1724598004465,0.4508,64188.0,64183.0,0.00013058]
[1724598004466,0.46580829,64188.0,64183.0,0.00013058]
[1724598004657,0.09,64184.0,64183.0,0.00013058]
[1724598004864,0.10408829,64184.0,64183.0,0.02447966]
[1724598005059,0.18190493,64184.0,64183.0,0.02447966]
[1724598005258,0.18230493,64184.0,64183.0,0.02447966]
[1724598005559,0.10448829,64184.0,64183.0,0.00013058]
[1724598005757,0.09235029,64184.0,64183.0,0.00013058]
[1724598005960,0.18235029,64184.0,64183.0,0.00013058]
[1724598006161,0.2093705,64184.0,64183.0,0.00013058]
[1724598006557,0.2103705,64184.0,64183.0,0.00313058]
[1724598006760,0.2103705,64184.0,64183.0,0.00513058]
[1724598006761,0.5711705,64184.0,64183.0,0.00513058]
[1724598007451,0.5721705,64184.0,64183.0,0.00513058]
[1724598008963,0.2113705,64184.0,64183.0,0.00513058]
[1724598009160,0.5721705,64184.0,64183.0,0.00513058]
[1724598009761,0.2113705,64184.0,64183.0,0.00513058]
[1724598010152,0.5721705,64184.0,64183.0,0.00513058]
[1724598011067,0.2113705,64184.0,64183.0,0.00513058]
[1724598011256,0.5721705,64184.0,64183.0,0.00513058]
[1724598012354,0.63433314,64184.0,64183.0,0.00513058]
[1724598012863,0.5721705,64184.0,64183.0,0.00513058]
[1724598015358,0.63432515,64184.0,64183.0,0.00513058]
[1724598015565,0.5721705,64184.0,64183.0,0.00513058]
[1724598015768,0.63432515,64184.0,64183.0,0.00513058]
[1724598015979,0.5721705,64184.0,64183.0,0.00513058]
[1724598023874,0.63431445,64184.0,64183.0,0.00513058]
[1724598025872,0.5721705,64184.0,64183.0,0.00513058]
[1724598040383,0.60225036,64184.0,64183.0,0.00513058]
[1724598041378,0.2414503,64184.0,64183.0,0.00513058]
[1724598041683,0.6022503,64184.0,64183.0,0.00513058]
[1724598041882,0.2414503,64184.0,64183.0,0.00513058]
[1724598042086,0.6022503,64184.0,64183.0,0.00513058]
[1724598043984,0.2414503,64184.0,64183.0,0.00513058]
[1724598044182,0.6022503,64184.0,64183.0,0.00513058]
[1724598045385,0.5721705,64184.0,64183.0,0.00513058]
[1724598045571,0.60225031,64184.0,64183.0,0.00513058]
[1724598045776,0.68011231,64184.0,64183.0,0.00513058]
[1724598045969,0.6500325,64184.0,64183.0,0.00513058]
[1724598047676,0.7278945,64184.0,64183.0,0.002]
[1724598047881,0.7278945,64184.0,64174.0,0.06229924]
[1724598047882,0.077863,64183.0,64174.0,0.06229924]
[1724598048084,0.077863,64183.0,64162.0,0.0487]
[1724598048085,0.077874,64174.0,64173.0,0.06229924]
[1724598048282,0.077874,64174.0,64162.0,0.19124748]
[1724598048283,0.09,64174.0,64172.0,0.06229924]
[1724598048579,0.077878,64171.0,64170.0,0.06229924]
[1724598048885,0.077878,64171.0,64169.0,0.06229924]
[1724598048886,0.077879,64170.0,64169.0,0.06229924]
[1724598049074,0.167879,64170.0,64169.0,0.06229924]
[1724598049480,0.07788,64169.0,64168.0,0.06229924]
[1724598049681,0.52868,64169.0,64168.0,0.06229924]
[1724598050184,0.54316829,64169.0,64168.0,0.06229924]
[1724598050486,0.077881,64168.0,64167.0,0.06229924]
[1724598050686,0.18196929,64168.0,64167.0,0.06229924]
[1724598050881,0.54276929,64168.0,64167.0,0.06229924]
[1724598051394,0.54316929,64168.0,64167.0,0.06229924]
[1724598052478,0.077883,64167.0,64166.0,0.06229924]
[1724598052679,0.167883,64167.0,64166.0,0.06229924]
[1724598052883,0.18197129,64167.0,64166.0,0.06229924]
[1724598053488,0.077884,64166.0,64165.0,0.06229924]
[1724598053678,0.167884,64166.0,64165.0,0.06229924]
[1724598053878,0.18197229,64166.0,64165.0,0.06229924]
[1724598054081,0.18197229,64166.0,64162.0,0.12464022]
[1724598054082,0.077885,64165.0,64163.0,0.06229924]
[1724598054382,0.18197429,64164.0,64163.0,0.01]
[1724598054893,0.18197429,64164.0,64163.0,0.03435352]
[1724598054894,0.18237429,64164.0,64163.0,0.03435352]
[1724598056683,0.18337429,64164.0,64163.0,0.03435352]
[1724598056885,0.18437429,64164.0,64163.0,0.03435352]
[1724598057788,0.18437429,64164.0,64163.0,0.01]
[1724598057984,0.18437429,64164.0,64163.0,0.03435349]
[1724598058888,0.18437429,64164.0,64163.0,0.01]
[1724598059282,0.18437429,64164.0,64163.0,0.03435356]
[1724598059586,0.18437429,64164.0,64163.0,0.01]
[1724598060384,0.18437429,64164.0,64163.0,0.03435357]
[1724598060981,0.18437429,64164.0,64163.0,0.03435369]
[1724598061177,0.09437429,64164.0,64163.0,0.09665293]
[1724598061386,0.18437429,64164.0,64163.0,0.07229924]
[1724598061586,0.18437429,64164.0,64163.0,0.01]
[1724598071298,0.54517429,64164.0,64163.0,0.01]
[1724598071786,0.18437429,64164.0,64163.0,0.01]
[1724598071990,0.54517429,64164.0,64163.0,0.01]
[1724598072193,0.18437429,64164.0,64163.0,0.01]
[1724598072397,0.54517429,64164.0,64163.0,0.01]
[1724598072999,0.45517429,64164.0,64163.0,0.01]
[1724598073504,0.45517429,64164.0,64163.0,0.07229924]
[1724598074589,0.45517429,64164.0,64163.0,0.01]
[1724598075394,0.45517429,64164.0,64163.0,0.07229924]
[1724598075794,0.45517429,64164.0,64163.0,0.01]
[1724598075995,0.45517429,64164.0,64163.0,0.07224607]
[1724598076295,0.45517429,64164.0,64163.0,0.01]
[1724598078389,0.45517429,64164.0,64163.0,0.08757549]
[1724598079001,0.45517429,64164.0,64163.0,0.01]
[1724598079496,0.45517429,64164.0,64163.0,0.08757549]
[1724598079707,0.45517429,64164.0,64163.0,0.20626925]
[1724598081203,0.45517429,64164.0,64163.0,0.08757549]
[1724598081401,0.45517429,64164.0,64163.0,0.20626999]
[1724598082903,0.09437429,64164.0,64163.0,0.20626999]
[1724598083203,0.45517429,64164.0,64163.0,0.20626999]
[1724598084202,0.45517429,64164.0,64163.0,0.1286945]
[1724598084907,0.01648829,64164.0,64163.0,0.5673825]
[1724598085106,0.06231795,64171.0,64163.0,1.38140829]
[1724598085297,0.00023367,64174.0,64173.0,0.077875]
[1724598085502,0.00023367,64174.0,64173.0,0.42440121]
[1724598085705,0.00023367,64174.0,64173.0,0.44872205]
[1724598085906,0.00023367,64174.0,64173.0,0.35872085]
[1724598086121,0.00023367,64174.0,64173.0,0.38912168]
[1724598086408,0.00023367,64174.0,64173.0,0.31128889]
[1724598086609,0.00023367,64174.0,64173.0,0.3890811]
[1724598086823,0.00023367,64174.0,64173.0,0.31128889]
[1724598087026,0.00123367,64174.0,64173.0,0.3112877]
[1724598087218,0.00223367,64174.0,64173.0,0.38908024]
[1724598087527,0.00223367,64174.0,64173.0,0.27038682]
[1724598088219,0.00223367,64174.0,64173.0,0.19262262]
[1724598089109,0.00223367,64174.0,64173.0,0.078275]
[1724598089522,0.00223367,64174.0,64173.0,0.10262416]
[1724598090211,0.00223367,64174.0,64173.0,0.078275]
[1724598090413,0.00223367,64174.0,64173.0,0.10262416]
[1724598091515,0.00223367,64174.0,64173.0,0.14045707]
[1724598091717,0.00223367,64174.0,64173.0,0.078275]
[1724598092027,0.00223367,64174.0,64173.0,0.14045707]
[1724598092831,0.00223367,64174.0,64173.0,0.078275]
[1724598093327,0.00223367,64174.0,64173.0,0.14045707]
[1724598093527,0.00223367,64174.0,64173.0,0.078275]
[1724598094021,0.08010767,64174.0,64173.0,0.0004]
[1724598094231,0.17250767,64174.0,64173.0,0.0004]
[1724598094915,0.25038167,64174.0,64173.0,0.0004]
[1724598096018,0.25038167,64174.0,64162.0,0.0491]
[1724598096019,0.077888,64163.0,64162.0,0.06218207]
[1724598096334,0.077888,64163.0,64158.0,0.06218207]
[1724598096335,0.077892,64159.0,64158.0,0.06218207]
[1724598096514,0.09,64158.0,64157.0,0.08218207]
[1724598096718,0.167894,64158.0,64157.0,0.11653492]
[1724598097118,0.167894,64158.0,64157.0,0.08110809]
[1724598097325,0.168294,64158.0,64157.0,0.14328782]
[1724598097525,0.168294,64158.0,64157.0,0.08110809]
[1724598097723,0.168294,64158.0,64157.0,0.14328467]
[1724598097931,0.168294,64158.0,64157.0,0.08110809]
[1724598098228,0.169294,64158.0,64157.0,0.08210809]
[1724598098524,0.170294,64158.0,64157.0,0.08310809]
[1724598099427,0.170294,64158.0,64157.0,0.12092652]
[1724598099933,0.170294,64158.0,64157.0,0.12092441]
[1724598100131,0.170294,64158.0,64157.0,0.0941716]
[1724598100620,0.170294,64158.0,64157.0,0.032]
[1724598116138,0.170294,64158.0,64157.0,0.022]
[1724598117541,0.169294,64158.0,64157.0,0.021]
[1724598117842,0.170294,64158.0,64157.0,0.022]
[1724598120743,0.531094,64158.0,64157.0,0.022]
[1724598120942,0.170294,64158.0,64157.0,0.022]
[1724598121141,0.170294,64158.0,64157.0,0.06863079]
[1724598121142,0.531094,64158.0,64157.0,0.06863079]
[1724598121546,0.531094,64158.0,64157.0,0.022]
[1724598124343,0.531094,64158.0,64157.0,0.0841716]
[1724598125447,0.531094,64158.0,64157.0,0.022]
[1724598125653,0.531094,64158.0,64157.0,0.0841716]
[1724598129754,0.531094,64158.0,64157.0,0.022]
[1724598130653,0.531094,64158.0,64157.0,0.08429475]
[1724598133250,0.170294,64158.0,64157.0,0.08429475]
[1724598133452,0.531094,64158.0,64157.0,0.08429475]
[1724598134751,0.170294,64158.0,64157.0,0.08429475]
[1724598134957,0.531094,64158.0,64157.0,0.08429475]
[1724598136361,0.441094,64158.0,64157.0,0.08429475]
[1724598136564,0.441094,64158.0,64157.0,0.022]
[1724598136952,0.080294,64158.0,64157.0,0.022]
[1724598137147,0.441094,64158.0,64157.0,0.022]
[1724598138265,0.080294,64158.0,64157.0,0.022]
[1724598138554,0.441094,64158.0,64157.0,0.022]
[1724598139449,0.3632,64158.0,64157.0,0.099895]
[1724598139648,0.3632,64158.0,64157.0,0.147695]
[1724598139860,0.3632,64158.0,64157.0,0.29075793]
[1724598141361,0.0024,64158.0,64157.0,0.34075793]
[1724598141764,0.0024,64158.0,64157.0,0.29075793]
[1724598142959,0.0024,64158.0,64157.0,0.26640099]
[1724598144360,0.0024,64158.0,64157.0,0.34426676]
[1724598147257,0.0024,64158.0,64157.0,0.22556077]
[1724598147763,0.0024,64158.0,64157.0,0.34426008]
[1724598150169,0.0024,64158.0,64157.0,0.34425857]
[1724598150470,0.0024,64158.0,64157.0,0.22556077]
[1724598151367,0.0024,64158.0,64157.0,0.2663928]
[1724598151678,0.0024,64158.0,64157.0,0.22554204]
[1724598152374,0.0024,64158.0,64157.0,0.147695]
[1724598152569,0.0024,64158.0,64157.0,0.22554204]
[1724598153071,0.080293,64158.0,64157.0,0.22554204]
[1724598153462,0.170293,64158.0,64157.0,0.147695]
[1724598155071,0.170293,64158.0,64157.0,0.17205083]
[1724598155975,0.170293,64158.0,64157.0,0.04635583]
[1724598156676,0.169293,64158.0,64157.0,0.04535583]
[1724598156880,0.170293,64158.0,64157.0,0.04635583]
[1724598159180,0.170293,64158.0,64157.0,0.022]
[1724598160683,0.080293,64158.0,64157.0,0.022]
[1724598161183,0.080293,64158.0,64157.0,0.04635599]
[1724598162187,0.080293,64158.0,64157.0,0.022]
[1724598162483,0.080293,64158.0,64157.0,0.04635599]
[1724598164485,0.080293,64158.0,64157.0,0.022]
[1724598164682,0.080293,64158.0,64157.0,0.04635599]
[1724598165183,0.080293,64158.0,64157.0,0.022]
[1724598166578,0.080293,64158.0,64157.0,0.21854891]
[1724598168189,0.080293,64158.0,64157.0,0.242905]
[1724598169179,0.080293,64158.0,64157.0,0.21854891]
[1724598169379,0.080293,64158.0,64157.0,0.242905]
[1724598170284,0.080293,64158.0,64157.0,0.21854891]
[1724598171287,0.170293,64158.0,64157.0,0.21854891]
[1724598173584,0.170293,64158.0,64157.0,0.09984704]
[1724598173784,0.170293,64158.0,64157.0,0.022]
[1724598178290,0.170293,64158.0,64157.0,0.04635655]
[1724598179892,0.170293,64158.0,64157.0,0.022]
[1724598180089,0.170293,64158.0,64157.0,0.04635672]
[1724598180489,0.170293,64158.0,64157.0,0.022]
[1724598182204,0.248187,64158.0,64157.0,0.022]
[1724598183299,0.248187,64158.0,64157.0,0.08432555]
[1724598183899,0.608987,64158.0,64157.0,0.08432555]
[1724598185189,0.608987,64158.0,64157.0,0.022]
[1724598186607,0.608987,64158.0,64157.0,0.06872845]
[1724598192606,0.248187,64158.0,64157.0,0.06872845]
[1724598192806,0.608987,64158.0,64157.0,0.06872845]
[1724598196725,0.608987,64158.0,64157.0,0.022]
[1724598199112,0.248187,64158.0,64157.0,0.022]
[1724598199419,0.608987,64158.0,64157.0,0.022]
[1724598202818,0.608987,64158.0,64157.0,0.06872845]
[1724598203617,0.608987,64158.0,64157.0,0.022]
[1724598209626,0.68675471,64158.0,64157.0,0.022]
[1724598210722,0.608987,64158.0,64157.0,0.08432555]
[1724598210923,0.608987,64158.0,64157.0,0.10868415]
[1724598211229,0.608987,64158.0,64157.0,0.08432555]
[1724598211528,0.608987,64158.0,64157.0,0.10868415]
[1724598211720,0.608987,64158.0,64157.0,0.0463586]
[1724598213128,0.608987,64158.0,64157.0,0.022]
[1724598213521,0.608987,64158.0,64157.0,0.0707172]
[1724598217929,0.441093,64158.0,64157.0,0.0707172]
[1724598218130,0.441093,64158.0,64157.0,0.1486122]
[1724598218428,0.10490828,64163.0,64161.0,0.07789]
[1724598218627,0.02714057,64163.0,64162.0,0.22485994]
[1724598218831,0.09,64168.0,64162.0,0.1625586]
[1724598218832,0.07776771,64165.0,64162.0,0.1625586]
[1724598219021,0.09,64164.0,64163.0,0.06229714]
[1724598219628,0.09,64164.0,64162.0,0.11049714]
[1724598219829,0.167887,64164.0,64162.0,0.11049714]
[1724598220226,0.167887,64164.0,64162.0,0.11249714]
[1724598220934,0.168887,64164.0,64162.0,0.11249714]
[1724598221334,0.169887,64164.0,64163.0,0.002]
[1724598222930,0.077888,64163.0,64162.0,0.0532]
[1724598223829,0.078288,64163.0,64162.0,0.0512]
[1724598224529,0.079288,64163.0,64162.0,0.0502]
[1724598225527,0.080288,64163.0,64162.0,0.0522]
[1724598233940,0.080288,64163.0,64162.0,0.004]
[1724598237243,0.080288,64163.0,64162.0,0.0506854]
[1724598238641,0.080288,64163.0,64162.0,0.004]
[1724598239346,0.441088,64163.0,64162.0,0.05069287]
[1724598239545,0.441088,64163.0,64162.0,0.004]
[1724598240344,0.080288,64163.0,64162.0,0.05069548]
[1724598240650,0.441088,64163.0,64162.0,0.05069548]
[1724598241750,0.441088,64163.0,64162.0,0.004]
[1724598241943,0.441088,64163.0,64162.0,0.094]
[1724598242144,0.07776771,64168.0,64162.0,0.20629714]
[1724598242352,0.077877,64172.0,64167.0,0.09]
[1724598242547,0.0261113,64175.0,64171.0,0.09]
[1724598242853,0.0261113,64175.0,64173.0,0.42303732]
[1724598243356,0.0261113,64175.0,64173.0,0.42343732]
[1724598244252,0.0261113,64175.0,64173.0,0.3612]
[1724598244452,0.0261113,64175.0,64173.0,0.42340782]
[1724598244751,0.00123367,64174.0,64173.0,0.42340782]
[1724598245055,0.00123367,64174.0,64173.0,0.50128282]
[1724598245056,0.00323367,64174.0,64173.0,0.50128282]
[1724598245250,0.00523367,64174.0,64173.0,0.50128282]
[1724598245451,0.00523367,64174.0,64173.0,0.439075]
[1724598245653,0.00523367,64174.0,64173.0,0.078275]
[1724598245848,0.00523367,64174.0,64173.0,0.439075]
[1724598246545,0.06223407,64184.0,64180.0,0.077866]
[1724598246751,0.14009507,64185.0,64183.0,0.4508]
[1724598247056,0.077861,64185.0,64183.0,0.4508]
[1724598247845,0.077861,64185.0,64184.0,0.0004]
[1724598247846,0.091861,64185.0,64184.0,0.0004]
[1724598249351,0.16796606,64185.0,64184.0,0.0004]
[1724598250151,0.105861,64185.0,64184.0,0.0004]
[1724598254452,0.028,64185.0,64184.0,0.078262]
[1724598254653,0.028,64185.0,64184.0,0.125662]
[1724598255757,0.027,64185.0,64184.0,0.125662]
[1724598256158,0.027,64185.0,64184.0,0.487462]
[1724598256760,0.027,64185.0,64184.0,0.507462]
[1724598257961,0.00023367,64190.0,64189.0,0.077856]
[1724598258156,0.00023367,64190.0,64189.0,0.167856]
[1724598258857,0.00023367,64190.0,64189.0,0.168256]
[1724598259065,0.01423367,64190.0,64189.0,0.169256]
[1724598259259,0.01423367,64190.0,64189.0,0.170256]
[1724598259462,0.02823367,64190.0,64189.0,0.170256]
[1724598259662,0.0932,64202.0,64195.0,0.077848]
[1724598259663,0.077844,64199.0,64195.0,0.077848]
[1724598259855,0.077844,64199.0,64198.0,0.09]
[1724598260459,0.077844,64199.0,64198.0,0.0904]
[1724598262165,0.077844,64199.0,64198.0,0.0914]
[1724598262956,0.077844,64199.0,64198.0,0.169245]
[1724598264151,0.077844,64199.0,64198.0,0.079245]
[1724598265362,0.077844,64199.0,64198.0,0.080245]
[1724598269260,0.077844,64199.0,64198.0,0.0024]
[1724598272768,0.077851,64193.0,64187.0,0.40722971]
[1724598273061,0.167851,64193.0,64187.0,0.3608]
[1724598273659,0.59073826,64193.0,64187.0,0.3608]
[1724598274564,0.528651,64193.0,64192.0,0.00123367]
[1724598274762,0.528651,64193.0,64192.0,0.00223367]
[1724598275164,0.59076199,64193.0,64192.0,0.00223367]
[1724598275371,0.528651,64193.0,64192.0,0.00223367]
[1724598276271,0.528651,64193.0,64192.0,0.00123367]
[1724598276469,0.528651,64193.0,64192.0,0.00223367]
[1724598276670,0.167851,64193.0,64192.0,0.00223367]
[1724598276873,0.528651,64193.0,64192.0,0.00223367]
[1724598278273,0.5551802,64193.0,64192.0,0.00123367]
[1724598278463,0.5551802,64193.0,64192.0,0.00223367]
[1724598279571,0.077851,64193.0,64192.0,0.04866338]
[1724598279866,0.077851,64193.0,64192.0,0.00223367]
[1724598280968,0.077851,64193.0,64192.0,0.00123367]
[1724598281171,0.077851,64193.0,64192.0,0.00223367]
[1724598284470,0.077851,64193.0,64192.0,0.06440388]
[1724598285979,0.077851,64193.0,64192.0,0.00223367]
[1724598286177,0.14006826,64193.0,64192.0,0.06445592]
[1724598286480,0.077851,64193.0,64192.0,0.06445592]
[1724598287579,0.077851,64193.0,64192.0,0.08879928]
[1724598288975,0.077851,64193.0,64192.0,0.02657703]
[1724598289575,0.077851,64193.0,64192.0,0.00223367]
[1724598289771,0.077851,64193.0,64192.0,0.02657718]
[1724598291473,0.077851,64193.0,64192.0,0.16665143]
[1724598293178,0.02695959,64196.0,64195.0,0.077849]
[1724598293384,0.15561071,64200.0,64197.0,0.077845]
[1724598293584,0.15561071,64200.0,64198.0,0.10218851]
[1724598293781,0.077843,64200.0,64199.0,0.10218751]
[1724598293977,0.077843,64200.0,64199.0,0.19218751]
[1724598294282,0.3608,64201.0,64200.0,0.077843]
[1724598294688,0.3608,64201.0,64200.0,0.12451871]
[1724598295186,0.38696981,64201.0,64200.0,0.12451871]
[1724598295373,0.44920237,64201.0,64200.0,0.077843]
[1724598295578,0.44920237,64201.0,64200.0,0.125243]
[1724598295981,0.44920237,64201.0,64200.0,0.126243]
[1724598296789,0.42303256,64201.0,64200.0,0.126243]
[1724598297085,0.06223256,64201.0,64200.0,0.126243]
[1724598297490,0.06223256,64201.0,64200.0,0.1729096]
[1724598299682,0.00023367,64205.0,64204.0,0.077838]
[1724598299986,0.00023367,64205.0,64204.0,0.46297954]
[1724598301185,0.00023367,64205.0,64204.0,0.50959891]